[Event "*** Titled Tuesday Blitz"]
[Site "Chess.com"]
[Date "2021.02.02"]
[Round "4"]
[White "temiksmozg"]
[Black "Moon_stone123"]
[Result "1-0"]
[WhiteElo "2616"]
[BlackElo "2438"]
[TimeControl "180+1"]
[EndTime "10:43:00 PST"]
[Termination "temiksmozg won by resignation"]

1. d4 {[%clk 0:03:00.9]} 1... d5 {[%clk 0:02:59.7]} 2. c4 {[%clk 0:03:01.2]}
2... dxc4 {[%clk 0:03:00.6]} 3. e3 {[%clk 0:03:01.3]} 3... e5 {[%clk 0:02:56.2]}
4. Bxc4 {[%clk 0:03:01.4]} 4... exd4 {[%clk 0:02:56.6]} 5. exd4 {[%clk
0:03:01.8]} 5... Bd6 {[%clk 0:02:57]} 6. Nf3 {[%clk 0:03:00.7]} 6... Nf6 {[%clk
0:02:57.1]} 7. Qe2+ {[%clk 0:03:01.1]} 7... Qe7 {[%clk 0:02:56.7]} 8. Qxe7+
{[%clk 0:03:01.3]} 8... Bxe7 {[%clk 0:02:57.5]} 9. O-O {[%clk 0:02:57.9]} 9...
O-O {[%clk 0:02:57.8]} 10. Re1 {[%clk 0:02:56.4]} 10... Bd6 {[%clk 0:02:57.9]}
11. Nc3 {[%clk 0:02:55]} 11... Nbd7 {[%clk 0:02:54.7]} 12. Bg5 {[%clk
0:02:47.4]} 12... h6 {[%clk 0:02:53.6]} 13. Bh4 {[%clk 0:02:47.2]} 13... c6
{[%clk 0:02:44.7]} 14. Bb3 {[%clk 0:02:41.9]} 14... b5 {[%clk 0:02:15.7]} 15.
Ne5 {[%clk 0:02:30.7]} 15... Bb7 {[%clk 0:02:13.4]} 16. Nxd7 {[%clk 0:02:30.6]}
16... Nxd7 {[%clk 0:02:13.4]} 17. Be7 {[%clk 0:02:31.2]} 17... Bxe7 {[%clk
0:02:01.5]} 18. Rxe7 {[%clk 0:02:32.1]} 18... Rad8 {[%clk 0:01:54.6]} 19. Ne4
{[%clk 0:02:30.5]} 19... c5 {[%clk 0:01:06.8]} 20. Nxc5 {[%clk 0:02:20.3]} 20...
Nxc5 {[%clk 0:00:57.4]} 21. dxc5 {[%clk 0:02:21.2]} 21... Bd5 {[%clk 0:00:58]}
22. Rxa7 {[%clk 0:02:04.5]} 22... Bxb3 {[%clk 0:00:55.2]} 23. axb3 {[%clk
0:02:05.4]} 23... Rd2 {[%clk 0:00:55.4]} 24. Rb7 {[%clk 0:02:01.4]} 24... Rxb2
{[%clk 0:00:48.9]} 25. Rxb5 {[%clk 0:02:00.6]} 25... Rd8 {[%clk 0:00:49.5]} 26.
g3 {[%clk 0:01:28.3]} 26... Rdd2 {[%clk 0:00:47.2]} 27. Rf1 {[%clk 0:01:26.1]}
27... Rdc2 {[%clk 0:00:44.5]} 28. b4 {[%clk 0:01:25.5]} 28... Rc4 {[%clk
0:00:44.4]} 29. Kg2 {[%clk 0:01:23]} 29... g6 {[%clk 0:00:34.2]} 30. h4 {[%clk
0:01:21.3]} 30... Kg7 {[%clk 0:00:31.6]} 31. Rb6 {[%clk 0:01:21.5]} 31... Rbxb4
{[%clk 0:00:24.5]} 32. Rxb4 {[%clk 0:01:21.1]} 32... Rxb4 {[%clk 0:00:25.4]} 33.
Rc1 {[%clk 0:01:21]} 33... Rb7 {[%clk 0:00:23.9]} 34. Kf3 {[%clk 0:01:16.5]}
34... Kf6 {[%clk 0:00:23.6]} 35. Ke4 {[%clk 0:01:15.8]} 35... Ke6 {[%clk
0:00:23.8]} 36. Kd4 {[%clk 0:01:15.6]} 36... Rc7 {[%clk 0:00:17.3]} 37. Re1+
{[%clk 0:01:13.8]} 37... Kd7 {[%clk 0:00:15.3]} 38. Kd5 {[%clk 0:01:14.7]} 38...
Rc6 {[%clk 0:00:14.9]} 39. Ra1 {[%clk 0:01:13.8]} 39... Rf6 {[%clk 0:00:13.7]}
40. Ra7+ {[%clk 0:01:12.8]} 40... Kc8 {[%clk 0:00:13.9]} 41. f4 {[%clk 0:01:11]}
41... g5 {[%clk 0:00:13.9]} 42. fxg5 {[%clk 0:01:08.1]} 42... hxg5 {[%clk
0:00:14.8]} 43. h5 {[%clk 0:01:08.4]} 43... g4 {[%clk 0:00:15]} 44. c6 {[%clk
0:00:52]} 44... Rh6 {[%clk 0:00:11.5]} 45. Rxf7 {[%clk 0:00:48.6]} 45... Rxh5+
{[%clk 0:00:11.7]} 46. Kd6 {[%clk 0:00:49]} 46... Rh6+ {[%clk 0:00:12.1]} 47.
Kc5 {[%clk 0:00:49.3]} 47... Rh1 {[%clk 0:00:10.1]} 48. Rg7 {[%clk 0:00:47.5]}
48... Rc1+ {[%clk 0:00:09.4]} 49. Kd6 {[%clk 0:00:47.2]} 49... Rd1+ {[%clk
0:00:09.8]} 50. Ke5 {[%clk 0:00:47.4]} 50... Rc1 {[%clk 0:00:07.2]} 51. c7
{[%clk 0:00:43.4]} 51... Rc4 {[%clk 0:00:03.7]} 52. Kf5 {[%clk 0:00:43.3]} 52...
Kb7 {[%clk 0:00:01.7]} 53. Rxg4 {[%clk 0:00:36.1]} 53... Rxc7 {[%clk 0:00:01.4]}
54. Rd4 {[%clk 0:00:35.3]} 54... Rc5+ {[%clk 0:00:01.9]} 55. Kg6 {[%clk
0:00:32.9]} 55... Kc7 {[%clk 0:00:02.4]} 56. g4 {[%clk 0:00:32.5]} 56... Rc1
{[%clk 0:00:01.8]} 57. g5 {[%clk 0:00:32.7]} 57... Rf1 {[%clk 0:00:01.5]} 58.
Kh6 {[%clk 0:00:32.5]} 58... Rh1+ {[%clk 0:00:01.8]} 59. Kg7 {[%clk 0:00:32.7]}
59... Rg1 {[%clk 0:00:02.7]} 60. g6 {[%clk 0:00:33]} 60... Rf1 {[%clk
0:00:03.3]} 61. Kh8 {[%clk 0:00:32.8]} 61... Rh1+ {[%clk 0:00:04.2]} 62. Kg8
{[%clk 0:00:32.7]} 62... Rg1 {[%clk 0:00:05.1]} 63. g7 {[%clk 0:00:33]} 63...
Rg3 {[%clk 0:00:04.8]} 64. Rh4 {[%clk 0:00:32.6]} 64... Rf3 {[%clk 0:00:04.9]}
65. Kh7 {[%clk 0:00:32.3]} 65... Rh3 {[%clk 0:00:05.3]} 66. Rxh3 {[%clk
0:00:31]} 1-0

[Event "*** Titled Tuesday Blitz"]
[Site "Chess.com"]
[Date "2021.02.02"]
[Round "4"]
[White "Forantes"]
[Black "FontVella8"]
[Result "0-1"]
[WhiteElo "2282"]
[BlackElo "2579"]
[TimeControl "180+1"]
[EndTime "10:43:01 PST"]
[Termination "FontVella8 won by checkmate"]

1. Nf3 {[%clk 0:03:00.9]} 1... Nf6 {[%clk 0:02:59.7]} 2. g3 {[%clk 0:03:00.3]}
2... d5 {[%clk 0:03:00]} 3. Bg2 {[%clk 0:03:00.2]} 3... c5 {[%clk 0:03:00.7]} 4.
O-O {[%clk 0:03:00.4]} 4... Nc6 {[%clk 0:03:01.4]} 5. d4 {[%clk 0:03:01]} 5...
Bg4 {[%clk 0:03:01]} 6. c3 {[%clk 0:02:51.5]} 6... e6 {[%clk 0:02:59.9]} 7. Bf4
{[%clk 0:02:50]} 7... Be7 {[%clk 0:02:56.7]} 8. Qb3 {[%clk 0:02:49.7]} 8... Qb6
{[%clk 0:02:56]} 9. dxc5 {[%clk 0:02:21.8]} 9... Bxc5 {[%clk 0:02:52.3]} 10.
Qxb6 {[%clk 0:02:21.8]} 10... Bxb6 {[%clk 0:02:52.4]} 11. Nbd2 {[%clk
0:02:22.4]} 11... O-O {[%clk 0:02:52]} 12. Nb3 {[%clk 0:02:22.1]} 12... Rfe8
{[%clk 0:02:43.9]} 13. h3 {[%clk 0:02:15.5]} 13... Bh5 {[%clk 0:02:36.8]} 14. g4
{[%clk 0:02:14.4]} 14... Bg6 {[%clk 0:02:36.6]} 15. Ne5 {[%clk 0:02:14.4]} 15...
Be4 {[%clk 0:02:32.9]} 16. Bxe4 {[%clk 0:02:03.6]} 16... Nxe4 {[%clk 0:02:33]}
17. Nd7 {[%clk 0:01:45.6]} 17... Bd8 {[%clk 0:01:51.8]} 18. Rad1 {[%clk
0:01:21.1]} 18... b6 {[%clk 0:01:39.4]} 19. f3 {[%clk 0:01:04.4]} 19... Nf6
{[%clk 0:01:37.4]} 20. Nxf6+ {[%clk 0:00:48.3]} 20... Bxf6 {[%clk 0:01:38.3]}
21. e4 {[%clk 0:00:48.5]} 21... dxe4 {[%clk 0:01:36.6]} 22. fxe4 {[%clk
0:00:49.4]} 22... Rad8 {[%clk 0:01:35.7]} 23. Kf2 {[%clk 0:00:48.4]} 23... Be5
{[%clk 0:01:33.2]} 24. Be3 {[%clk 0:00:44.7]} 24... Kf8 {[%clk 0:01:30.2]} 25.
Ke2 {[%clk 0:00:42.1]} 25... Ke7 {[%clk 0:01:28.9]} 26. Nd2 {[%clk 0:00:36.7]}
26... Bc7 {[%clk 0:01:18.6]} 27. Nc4 {[%clk 0:00:30.7]} 27... Ne5 {[%clk
0:01:16.5]} 28. Nxe5 {[%clk 0:00:19.6]} 28... Bxe5 {[%clk 0:01:16.4]} 29. Rxd8
{[%clk 0:00:19.7]} 29... Rxd8 {[%clk 0:01:16.5]} 30. Rd1 {[%clk 0:00:20.3]}
30... Rc8 {[%clk 0:01:07.9]} 31. Bd4 {[%clk 0:00:17.2]} 31... Bxd4 {[%clk
0:01:00.1]} 32. Rxd4 {[%clk 0:00:18.1]} 32... Rc5 {[%clk 0:00:55.3]} 33. Ke3
{[%clk 0:00:13.3]} 33... h5 {[%clk 0:00:55]} 34. Ra4 {[%clk 0:00:06.9]} 34... a5
{[%clk 0:00:51.2]} 35. Ra3 {[%clk 0:00:04.8]} 35... hxg4 {[%clk 0:00:50.8]} 36.
hxg4 {[%clk 0:00:04.7]} 36... Rb5 {[%clk 0:00:34.5]} 37. b3 {[%clk 0:00:02.5]}
37... Kf6 {[%clk 0:00:33.1]} 38. Ra4 {[%clk 0:00:02.5]} 38... Kg5 {[%clk
0:00:32.4]} 39. Kf3 {[%clk 0:00:03]} 39... Rc5 {[%clk 0:00:30.6]} 40. c4 {[%clk
0:00:03.4]} 40... Kf6 {[%clk 0:00:27.5]} 41. Kf4 {[%clk 0:00:03.4]} 41... g5+
{[%clk 0:00:27.2]} 42. Kf3 {[%clk 0:00:03]} 42... Ke5 {[%clk 0:00:27.8]} 43. Ke3
{[%clk 0:00:03.4]} 43... Rc8 {[%clk 0:00:26.7]} 44. a3 {[%clk 0:00:03]} 44...
Rh8 {[%clk 0:00:25.8]} 45. b4 {[%clk 0:00:02.9]} 45... Rh3+ {[%clk 0:00:25]} 46.
Kd2 {[%clk 0:00:03.1]} 46... axb4 {[%clk 0:00:17.8]} 47. Rxb4 {[%clk 0:00:02.2]}
47... Kxe4 {[%clk 0:00:16.6]} 48. Rxb6 {[%clk 0:00:02.5]} 48... Rxa3 {[%clk
0:00:15.4]} 49. Rb5 {[%clk 0:00:02.9]} 49... f5 {[%clk 0:00:15]} 50. gxf5 {[%clk
0:00:03]} 50... exf5 {[%clk 0:00:15.9]} 51. c5 {[%clk 0:00:03.7]} 51... g4
{[%clk 0:00:15.5]} 52. c6 {[%clk 0:00:03.9]} 52... Rd3+ {[%clk 0:00:11]} 53. Ke2
{[%clk 0:00:04.1]} 53... Rc3 {[%clk 0:00:11.3]} 54. Rb6 {[%clk 0:00:04.5]} 54...
g3 {[%clk 0:00:11]} 55. Rb4+ {[%clk 0:00:02.9]} 55... Ke5 {[%clk 0:00:11.3]} 56.
Rb5+ {[%clk 0:00:03]} 56... Kf4 {[%clk 0:00:11.2]} 57. Rb4+ {[%clk 0:00:03.1]}
57... Kg5 {[%clk 0:00:11.4]} 58. Rb6 {[%clk 0:00:03.3]} 58... Kg4 {[%clk
0:00:10.2]} 59. c7 {[%clk 0:00:02.4]} 59... Rxc7 {[%clk 0:00:09.8]} 60. Rg6+
{[%clk 0:00:03.3]} 60... Kf4 {[%clk 0:00:10.1]} 61. Kf1 {[%clk 0:00:03.5]} 61...
Rc1+ {[%clk 0:00:10.1]} 62. Kg2 {[%clk 0:00:03.8]} 62... Rc2+ {[%clk 0:00:10.7]}
63. Kh3 {[%clk 0:00:04.3]} 63... Rh2# {[%clk 0:00:09.6]} 0-1

[Event "*** Titled Tuesday Blitz"]
[Site "Chess.com"]
[Date "2021.02.02"]
[Round "4"]
[White "Kostya_Nikologorskiy"]
[Black "Chopper1905"]
[Result "0-1"]
[WhiteElo "2675"]
[BlackElo "2924"]
[TimeControl "180+1"]
[EndTime "10:43:02 PST"]
[Termination "Chopper1905 won by resignation"]

1. d4 {[%clk 0:03:00.9]} 1... Nf6 {[%clk 0:03:00]} 2. Bf4 {[%clk 0:02:59.1]}
2... d5 {[%clk 0:02:55.8]} 3. Nf3 {[%clk 0:02:57.2]} 3... c5 {[%clk 0:02:55]} 4.
e3 {[%clk 0:02:56.8]} 4... Nc6 {[%clk 0:02:55.4]} 5. c3 {[%clk 0:02:54.7]} 5...
Qb6 {[%clk 0:02:53.6]} 6. Qb3 {[%clk 0:02:53.4]} 6... c4 {[%clk 0:02:50.8]} 7.
Qxb6 {[%clk 0:02:18.5]} 7... axb6 {[%clk 0:02:51.7]} 8. Nbd2 {[%clk 0:02:19.2]}
8... b5 {[%clk 0:02:38.4]} 9. a3 {[%clk 0:02:19.2]} 9... Bf5 {[%clk 0:02:29.6]}
10. Rc1 {[%clk 0:02:11.6]} 10... h6 {[%clk 0:02:27.1]} 11. h3 {[%clk 0:02:09.7]}
11... e6 {[%clk 0:02:26.7]} 12. g4 {[%clk 0:02:09.3]} 12... Bh7 {[%clk
0:02:24.2]} 13. Bg2 {[%clk 0:02:00.5]} 13... Bd3 {[%clk 0:02:22.8]} 14. Bf1
{[%clk 0:02:00.6]} 14... Bh7 {[%clk 0:02:13.5]} 15. g5 {[%clk 0:01:58.7]} 15...
hxg5 {[%clk 0:02:10.4]} 16. Nxg5 {[%clk 0:01:59.3]} 16... Bf5 {[%clk 0:02:03.8]}
17. h4 {[%clk 0:01:56.3]} 17... Be7 {[%clk 0:01:45.7]} 18. Be2 {[%clk 0:01:43]}
18... Nd7 {[%clk 0:01:42.6]} 19. h5 {[%clk 0:01:33.2]} 19... e5 {[%clk
0:01:19.6]} 20. dxe5 {[%clk 0:01:32.9]} 20... Ncxe5 {[%clk 0:01:12.5]} 21. Ngf3
{[%clk 0:01:27.9]} 21... Nd3+ {[%clk 0:00:50.6]} 22. Bxd3 {[%clk 0:01:27.2]}
22... Bxd3 {[%clk 0:00:51.5]} 23. Nd4 {[%clk 0:01:27.3]} 23... b4 {[%clk
0:00:40.3]} 24. cxb4 {[%clk 0:01:23.1]} 24... Nf6 {[%clk 0:00:40]} 25. f3 {[%clk
0:01:13.3]} 25... Rxh5 {[%clk 0:00:38.5]} 26. Kf2 {[%clk 0:01:11.8]} 26... Kd7
{[%clk 0:00:36.6]} 27. Rxh5 {[%clk 0:01:10.3]} 27... Nxh5 {[%clk 0:00:36.6]} 28.
Be5 {[%clk 0:01:05.7]} 28... Re8 {[%clk 0:00:35.4]} 29. Rh1 {[%clk 0:00:59.1]}
29... g6 {[%clk 0:00:35.6]} 30. Nb5 {[%clk 0:00:45.2]} 30... Bxb4 {[%clk
0:00:20]} 31. axb4 {[%clk 0:00:40.2]} 31... Rxe5 {[%clk 0:00:20.5]} 32. Nc3
{[%clk 0:00:40.9]} 32... Rf5 {[%clk 0:00:15.3]} 33. Rh4 {[%clk 0:00:39.8]} 33...
Ng7 {[%clk 0:00:15]} 34. b3 {[%clk 0:00:34.4]} 34... cxb3 {[%clk 0:00:13.5]} 35.
Nxb3 {[%clk 0:00:35.3]} 35... Ne6 {[%clk 0:00:13.6]} 36. Kg2 {[%clk 0:00:30.6]}
36... Bc4 {[%clk 0:00:12.6]} 37. Na5 {[%clk 0:00:27.4]} 37... b5 {[%clk
0:00:12.4]} 38. Nb7 {[%clk 0:00:24.4]} 38... Rg5+ {[%clk 0:00:12.1]} 39. Kf2
{[%clk 0:00:24.1]} 39... Rh5 {[%clk 0:00:12.2]} 40. Rg4 {[%clk 0:00:21.6]} 40...
Rh2+ {[%clk 0:00:12]} 41. Kg3 {[%clk 0:00:22.3]} 41... Rc2 {[%clk 0:00:12.6]}
42. Nd1 {[%clk 0:00:22]} 42... Rd2 {[%clk 0:00:12.2]} 43. Nf2 {[%clk 0:00:22.2]}
43... Rb2 {[%clk 0:00:12.4]} 44. e4 {[%clk 0:00:21.7]} 44... d4 {[%clk
0:00:10.8]} 45. e5 {[%clk 0:00:20.6]} 45... d3 {[%clk 0:00:11.1]} 46. Ne4 {[%clk
0:00:20.3]} 46... Kc6 {[%clk 0:00:10.1]} 47. Nbc5 {[%clk 0:00:20.5]} 47... Nxc5
{[%clk 0:00:09.7]} 48. Nxc5 {[%clk 0:00:21.4]} 48... d2 {[%clk 0:00:10.1]} 49.
Rd4 {[%clk 0:00:22]} 49... Rxb4 {[%clk 0:00:10.2]} 50. Ne4 {[%clk 0:00:21]}
50... Rb3 {[%clk 0:00:05.9]} 51. Rd6+ {[%clk 0:00:21.9]} 51... Kc7 {[%clk
0:00:05.9]} 52. Nxd2 {[%clk 0:00:22.5]} 52... Rd3 {[%clk 0:00:05]} 53. Nxc4
{[%clk 0:00:22.9]} 53... bxc4 {[%clk 0:00:05.9]} 54. Rf6 {[%clk 0:00:22.8]}
54... c3 {[%clk 0:00:06.1]} 55. Rxf7+ {[%clk 0:00:23.2]} 55... Kd8 {[%clk
0:00:04]} 56. Rf8+ {[%clk 0:00:23.3]} 56... Kd7 {[%clk 0:00:04.1]} 57. Rf7+
{[%clk 0:00:23.3]} 57... Ke6 {[%clk 0:00:03.8]} 58. Rc7 {[%clk 0:00:23.1]} 58...
Kxe5 {[%clk 0:00:04.3]} 59. Rc5+ {[%clk 0:00:23.4]} 59... Kd4 {[%clk 0:00:04.7]}
60. Rc6 {[%clk 0:00:23.9]} 60... Ke3 {[%clk 0:00:04.8]} 61. Rxg6 {[%clk
0:00:23.1]} 61... c2 {[%clk 0:00:04.9]} 62. Rc6 {[%clk 0:00:23.6]} 62... Kd2
{[%clk 0:00:05.5]} 63. Rxc2+ {[%clk 0:00:22.4]} 63... Kxc2 {[%clk 0:00:06.4]}
64. Kg4 {[%clk 0:00:23.3]} 64... Kc3 {[%clk 0:00:07]} 65. f4 {[%clk 0:00:24.2]}
65... Kd4 {[%clk 0:00:07.6]} 66. f5 {[%clk 0:00:25.1]} 66... Ke5 {[%clk
0:00:07.9]} 67. Kg5 {[%clk 0:00:24.6]} 67... Rg3+ {[%clk 0:00:08]} 68. Kh4
{[%clk 0:00:25.5]} 68... Rf3 {[%clk 0:00:08.5]} 0-1

[Event "*** Titled Tuesday Blitz"]
[Site "Chess.com"]
[Date "2021.02.02"]
[Round "4"]
[White "Yashasd1995"]
[Black "Vaathi_Coming"]
[Result "1/2-1/2"]
[WhiteElo "2636"]
[BlackElo "2836"]
[TimeControl "180+1"]
[EndTime "10:43:06 PST"]
[Termination "Game drawn by repetition"]

1. b3 {[%clk 0:03:00.9]} 1... g6 {[%clk 0:02:59.1]} 2. Bb2 {[%clk 0:03:01.4]}
2... Nf6 {[%clk 0:03:00]} 3. Bxf6 {[%clk 0:03:01.8]} 3... exf6 {[%clk
0:03:00.9]} 4. c4 {[%clk 0:03:02.3]} 4... Bg7 {[%clk 0:03:01]} 5. Nc3 {[%clk
0:03:02.8]} 5... f5 {[%clk 0:02:57.9]} 6. Rc1 {[%clk 0:03:02.7]} 6... b6 {[%clk
0:02:57.7]} 7. e3 {[%clk 0:02:55.2]} 7... Bb7 {[%clk 0:02:57.5]} 8. Nf3 {[%clk
0:02:56.1]} 8... O-O {[%clk 0:02:55.8]} 9. g3 {[%clk 0:02:56.6]} 9... Nc6 {[%clk
0:02:25.7]} 10. Bg2 {[%clk 0:02:55.7]} 10... Re8 {[%clk 0:02:16.1]} 11. O-O
{[%clk 0:02:54.6]} 11... Nb4 {[%clk 0:01:57.1]} 12. d4 {[%clk 0:02:50.4]} 12...
a5 {[%clk 0:01:56.4]} 13. a3 {[%clk 0:02:41.9]} 13... Na6 {[%clk 0:01:56.6]} 14.
Qd2 {[%clk 0:02:20.9]} 14... Qe7 {[%clk 0:01:56]} 15. Qb2 {[%clk 0:02:20.3]}
15... Bf6 {[%clk 0:01:45.5]} 16. Nd5 {[%clk 0:02:12.7]} 16... Bxd5 {[%clk
0:01:39.5]} 17. cxd5 {[%clk 0:02:13.6]} 17... Nc5 {[%clk 0:01:39.2]} 18. Qa2
{[%clk 0:01:49.7]} 18... Ne4 {[%clk 0:01:31.4]} 19. Rxc7 {[%clk 0:01:48.5]}
19... Qd6 {[%clk 0:01:30.5]} 20. Rfc1 {[%clk 0:01:47.4]} 20... Qxd5 {[%clk
0:01:26.7]} 21. Nd2 {[%clk 0:01:45.9]} 21... a4 {[%clk 0:01:26.9]} 22. Bxe4
{[%clk 0:01:42]} 22... fxe4 {[%clk 0:01:26.1]} 23. R1c4 {[%clk 0:01:19.2]} 23...
axb3 {[%clk 0:00:53.3]} 24. Qxb3 {[%clk 0:01:10]} 24... Kg7 {[%clk 0:00:38.5]}
25. Qxb6 {[%clk 0:00:58.7]} 25... Rxa3 {[%clk 0:00:36.7]} 26. R7c5 {[%clk
0:00:47.2]} 26... Qa8 {[%clk 0:00:36.8]} 27. Qc7 {[%clk 0:00:21.5]} 27... d5
{[%clk 0:00:36.9]} 28. Rc1 {[%clk 0:00:19.6]} 28... Ra2 {[%clk 0:00:26.5]} 29.
R5c2 {[%clk 0:00:19.2]} 29... Re7 {[%clk 0:00:25.6]} 30. Qc3 {[%clk 0:00:18.2]}
30... Rea7 {[%clk 0:00:24.9]} 31. Nb3 {[%clk 0:00:17.5]} 31... R2a3 {[%clk
0:00:23.3]} 32. Rb2 {[%clk 0:00:11.6]} 32... Rb7 {[%clk 0:00:22.5]} 33. Qc2
{[%clk 0:00:11.3]} 33... Qb8 {[%clk 0:00:16.3]} 34. Rcb1 {[%clk 0:00:11.1]}
34... Be7 {[%clk 0:00:14.3]} 35. Nc5 {[%clk 0:00:10.4]} 35... Rxb2 {[%clk
0:00:14.5]} 36. Rxb2 {[%clk 0:00:10.7]} 36... Qc8 {[%clk 0:00:12.7]} 37. Kg2
{[%clk 0:00:07.7]} 37... h5 {[%clk 0:00:08.1]} 38. h4 {[%clk 0:00:06.8]} 38...
Qf5 {[%clk 0:00:07.7]} 39. Qe2 {[%clk 0:00:06.2]} 39... Bxc5 {[%clk 0:00:06.6]}
40. dxc5 {[%clk 0:00:07.1]} 40... d4 {[%clk 0:00:04.6]} 41. exd4 {[%clk
0:00:06.4]} 41... Qd5 {[%clk 0:00:04.2]} 42. Rc2 {[%clk 0:00:05.2]} 42... f5
{[%clk 0:00:03.3]} 43. c6 {[%clk 0:00:05]} 43... Ra8 {[%clk 0:00:03.3]} 44. c7
{[%clk 0:00:05.3]} 44... Rc8 {[%clk 0:00:03.7]} 45. Qa6 {[%clk 0:00:05.5]} 45...
e3+ {[%clk 0:00:03.8]} 46. Kh2 {[%clk 0:00:06.1]} 46... Qd7 {[%clk 0:00:02]} 47.
fxe3 {[%clk 0:00:05.5]} 47... f4 {[%clk 0:00:01.8]} 48. Qa5 {[%clk 0:00:05.6]}
48... fxg3+ {[%clk 0:00:01.4]} 49. Kxg3 {[%clk 0:00:05.9]} 49... Qg4+ {[%clk
0:00:01.8]} 50. Kf2 {[%clk 0:00:06.6]} 50... Rf8+ {[%clk 0:00:01.5]} 51. Ke1
{[%clk 0:00:05]} 51... Qg3+ {[%clk 0:00:01.7]} 52. Kd2 {[%clk 0:00:05.3]} 52...
Qf2+ {[%clk 0:00:02.3]} 53. Kc1 {[%clk 0:00:05.7]} 53... Qf1+ {[%clk 0:00:02.3]}
54. Kb2 {[%clk 0:00:06]} 54... Rc8 {[%clk 0:00:02.3]} 55. Qe5+ {[%clk
0:00:05.7]} 55... Kh7 {[%clk 0:00:02.8]} 56. Qe7+ {[%clk 0:00:05.8]} 56... Kh6
{[%clk 0:00:03.4]} 57. Qe6 {[%clk 0:00:06.2]} 57... Qb5+ {[%clk 0:00:03.2]} 58.
Kc1 {[%clk 0:00:06.4]} 58... Qf1+ {[%clk 0:00:03.6]} 59. Kb2 {[%clk 0:00:06.8]}
59... Qb5+ {[%clk 0:00:03.9]} 60. Kc1 {[%clk 0:00:07.3]} 60... Qf1+ {[%clk
0:00:04.1]} 61. Kb2 {[%clk 0:00:04.6]} 1/2-1/2

[Event "*** Titled Tuesday Blitz"]
[Site "Chess.com"]
[Date "2021.02.02"]
[Round "4"]
[White "1977Ivan"]
[Black "TimofeevAr"]
[Result "0-1"]
[WhiteElo "2716"]
[BlackElo "2866"]
[TimeControl "180+1"]
[EndTime "10:43:08 PST"]
[Termination "TimofeevAr won on time"]

1. Nf3 {[%clk 0:03:00.9]} 1... Nf6 {[%clk 0:02:58.4]} 2. g3 {[%clk 0:03:00.6]}
2... g6 {[%clk 0:02:58.3]} 3. b3 {[%clk 0:03:01.1]} 3... Bg7 {[%clk 0:02:58.1]}
4. Bb2 {[%clk 0:03:01.7]} 4... c5 {[%clk 0:02:58.4]} 5. c4 {[%clk 0:02:59.9]}
5... d6 {[%clk 0:02:55.4]} 6. Bg2 {[%clk 0:02:57.7]} 6... e5 {[%clk 0:02:55.1]}
7. O-O {[%clk 0:02:56.7]} 7... O-O {[%clk 0:02:54.6]} 8. Nc3 {[%clk 0:02:57.2]}
8... Nc6 {[%clk 0:02:54.2]} 9. d3 {[%clk 0:02:57.7]} 9... h6 {[%clk 0:02:52.6]}
10. a3 {[%clk 0:02:58.1]} 10... Be6 {[%clk 0:02:52]} 11. b4 {[%clk 0:02:51.6]}
11... cxb4 {[%clk 0:02:48.7]} 12. axb4 {[%clk 0:02:52.5]} 12... Nxb4 {[%clk
0:02:49]} 13. Ba3 {[%clk 0:02:52]} 13... Nc6 {[%clk 0:02:44.4]} 14. Nb5 {[%clk
0:02:48]} 14... Ne8 {[%clk 0:02:43.7]} 15. Rb1 {[%clk 0:02:46.7]} 15... Qd7
{[%clk 0:02:37.2]} 16. Nd2 {[%clk 0:02:44.7]} 16... a6 {[%clk 0:02:32.6]} 17.
Nc3 {[%clk 0:02:44.2]} 17... e4 {[%clk 0:02:23.6]} 18. Nd5 {[%clk 0:02:41.8]}
18... exd3 {[%clk 0:02:18.4]} 19. exd3 {[%clk 0:02:32.1]} 19... Rd8 {[%clk
0:02:05.8]} 20. Re1 {[%clk 0:02:27.2]} 20... Kh8 {[%clk 0:01:59.1]} 21. Ne4
{[%clk 0:02:21.8]} 21... b5 {[%clk 0:01:56.8]} 22. cxb5 {[%clk 0:01:51.2]} 22...
Bxd5 {[%clk 0:01:52.8]} 23. bxc6 {[%clk 0:01:50.7]} 23... Bxc6 {[%clk 0:01:53]}
24. Qd2 {[%clk 0:01:44.3]} 24... Bb5 {[%clk 0:01:49.1]} 25. Bb2 {[%clk
0:01:43.2]} 25... Bxb2 {[%clk 0:01:23.2]} 26. Qxb2+ {[%clk 0:01:44.1]} 26... Kh7
{[%clk 0:01:21.8]} 27. Nf6+ {[%clk 0:01:31.8]} 27... Nxf6 {[%clk 0:01:21.4]} 28.
Qxf6 {[%clk 0:01:32.7]} 28... Rde8 {[%clk 0:01:21]} 29. Bd5 {[%clk 0:01:30.5]}
29... Qd8 {[%clk 0:01:08.3]} 30. Qf4 {[%clk 0:01:15.9]} 30... Rxe1+ {[%clk
0:00:57.9]} 31. Rxe1 {[%clk 0:01:15]} 31... Kg7 {[%clk 0:00:58.2]} 32. d4 {[%clk
0:01:01.3]} 32... Qf6 {[%clk 0:00:57.5]} 33. Qd2 {[%clk 0:01:01.1]} 33... Re8
{[%clk 0:00:52.4]} 34. Rc1 {[%clk 0:00:57.1]} 34... Re7 {[%clk 0:00:51.6]} 35.
h4 {[%clk 0:00:55.1]} 35... h5 {[%clk 0:00:49.8]} 36. Kg2 {[%clk 0:00:54.3]}
36... Re2 {[%clk 0:00:46.6]} 37. Qf4 {[%clk 0:00:53.8]} 37... Qxf4 {[%clk
0:00:43.4]} 38. gxf4 {[%clk 0:00:54.7]} 38... Re7 {[%clk 0:00:43.1]} 39. Rc8
{[%clk 0:00:47.9]} 39... Ra7 {[%clk 0:00:42.5]} 40. Rd8 {[%clk 0:00:41.2]} 40...
a5 {[%clk 0:00:42.5]} 41. Rxd6 {[%clk 0:00:41.3]} 41... a4 {[%clk 0:00:43]} 42.
Rb6 {[%clk 0:00:39]} 42... Bd3 {[%clk 0:00:41]} 43. Kf3 {[%clk 0:00:34.8]} 43...
Bf5 {[%clk 0:00:39]} 44. Rb4 {[%clk 0:00:31.4]} 44... Be6 {[%clk 0:00:35.7]} 45.
Bxe6 {[%clk 0:00:30.5]} 45... fxe6 {[%clk 0:00:35.7]} 46. Rb2 {[%clk 0:00:24]}
46... a3 {[%clk 0:00:35.9]} 47. Ra2 {[%clk 0:00:24.2]} 47... Kf6 {[%clk
0:00:36.1]} 48. Ke4 {[%clk 0:00:24.4]} 48... Ra4 {[%clk 0:00:36.1]} 49. f3
{[%clk 0:00:21.8]} 49... Ra5 {[%clk 0:00:36.3]} 50. f5 {[%clk 0:00:17.9]} 50...
gxf5+ {[%clk 0:00:30.4]} 51. Kf4 {[%clk 0:00:18.1]} 51... Ra4 {[%clk 0:00:27.2]}
52. Ke3 {[%clk 0:00:16.8]} 52... Ke7 {[%clk 0:00:23.7]} 53. Kd3 {[%clk
0:00:16.8]} 53... Kd6 {[%clk 0:00:24]} 54. Kc3 {[%clk 0:00:15.9]} 54... Kd5
{[%clk 0:00:24.4]} 55. Kb3 {[%clk 0:00:03.8]} 55... Rxd4 {[%clk 0:00:23.6]} 56.
Kxa3 {[%clk 0:00:04.1]} 56... Rxh4 {[%clk 0:00:22.4]} 57. Rd2+ {[%clk
0:00:02.7]} 57... Ke5 {[%clk 0:00:21.7]} 58. Kb2 {[%clk 0:00:03.4]} 58... Rh3
{[%clk 0:00:18.9]} 59. Re2+ {[%clk 0:00:02.9]} 59... Kf6 {[%clk 0:00:18.3]} 60.
Re3 {[%clk 0:00:03.1]} 60... f4 {[%clk 0:00:15.9]} 61. Ra3 {[%clk 0:00:01.5]}
61... e5 {[%clk 0:00:15.3]} 62. Kc2 {[%clk 0:00:01.3]} 62... Kg5 {[%clk
0:00:11.6]} 63. Kd2 {[%clk 0:00:01.3]} 63... Kh4 {[%clk 0:00:11.5]} 64. Ke2
{[%clk 0:00:01.3]} 64... Kg3 {[%clk 0:00:11.7]} 0-1